bitfinex/quotes_SOLUSD_20260220
["timestamp","ask_amount","ask_price","bid_price","bid_amount"]
[1771613073820,11.39486681,85.1,85.063,4.08821871]
[1771613074902,23.14586434,85.1,85.063,4.08821871]
[1771613075631,11.39486681,85.1,85.063,4.08821871]
[1771613075835,11.74965473,85.109,85.063,4.08821871]
[1771613076001,11.39486681,85.11,85.071,4.08821871]
[1771613076318,11.74963869,85.109,85.071,4.08821871]
[1771613077424,11.39486681,85.11,85.071,4.08821871]
[1771613077859,4.3615274,85.152,85.101,4.09819238]
[1771613078127,4.3615274,85.148,85.111,4.09819238]
[1771613079027,11.74411913,85.149,85.121,4.09819238]
[1771613079598,4.3615274,85.148,85.111,4.09819238]
[1771613080007,11.74439498,85.147,85.112,11.74922455]
[1771613080210,11.74439498,85.147,85.113,4.09819238]
[1771613080429,4.3615274,85.158,85.12,11.39486681]
[1771613080646,4.3615274,85.158,85.121,4.09819238]
[1771613082112,4.3615274,85.158,85.112,41.12228592]
[1771613082113,4.3615274,85.149,85.112,11.74922455]
[1771613082314,4.3615274,85.139,85.102,4.09819238]
[1771613082513,4.3615274,85.139,85.103,11.75046708]
[1771613082816,4.3615274,85.139,85.103,15.84865946]
[1771613083018,4.3615274,85.139,85.104,4.09819238]
[1771613084330,15.75639421,85.13,85.099,11.75095193]
[1771613084631,41.10972773,85.138,85.086,4.09819238]
[1771613084632,11.39486681,85.12,85.086,4.09819238]
[1771613084809,4.3615274,85.129,85.088,4.09819238]
[1771613085225,4.3615274,85.129,85.091,4.09819238]
[1771613085427,11.39486681,85.13,85.091,4.09819238]
[1771613085628,11.74563649,85.138,85.101,4.09819238]
[1771613086407,11.74563649,85.138,85.079,0.14216157]
[1771613086408,11.7447881,85.145,85.11,11.39486681]
[1771613086612,11.7447881,85.145,85.111,4.09819238]
[1771613086812,4.3615274,85.144,85.111,4.09819238]
[1771613087029,4.3615274,85.149,85.111,4.09819238]
[1771613090223,4.3615274,85.147,85.112,15.84741693]
[1771613090834,4.3615274,85.139,85.112,15.84741693]
[1771613091021,4.3615274,85.139,85.112,11.74922455]
[1771613091208,4.3615274,85.139,85.112,15.84741693]
[1771613091528,4.3615274,85.147,85.113,4.09819238]
[1771613092331,11.39486681,85.14,85.105,4.09819238]
[1771613092531,11.39486681,85.14,84.984,165.62112611]
[1771613092532,4.3615274,85.129,85.094,4.09819238]
[1771613092725,41.1058652,85.146,85.094,4.09819238]
[1771613092726,4.3615274,85.137,85.094,4.09819238]
[1771613093418,11.39486681,85.13,85.094,4.09819238]
[1771613093736,4.3615274,85.129,85.094,4.09819238]
[1771613094640,4.3615274,85.129,85.069,0.14216157]
[1771613094641,4.3615274,85.137,85.101,4.09819238]
[1771613095619,0.14216157,85.158,85.111,4.09819238]
[1771613095620,11.74449799,85.147,85.111,4.09819238]
[1771613096322,11.39486681,85.15,85.111,4.09819238]
[1771613096723,4.3615274,85.148,85.111,4.09819238]
[1771613098028,4.3615274,85.146,85.113,4.09819238]
[1771613099618,4.3615274,85.146,85.112,11.74922455]
[1771613099836,4.3615274,85.139,85.112,11.74922455]
[1771613100345,4.3615274,85.129,85.092,4.09819238]
[1771613100532,11.39486681,85.13,85.094,4.09819238]
[1771613100827,11.74554235,85.139,85.101,4.09819238]
[1771613101141,4.3615274,85.138,85.101,4.09819238]
[1771613101340,29.35729037,85.158,85.11,11.39486681]
[1771613101536,11.39486681,85.15,85.111,4.09819238]
[1771613101739,11.39486681,85.15,85.093,41.13146791]
[1771613101740,11.74301584,85.157,85.121,4.09819238]
[1771613101934,11.74236131,85.162,85.13,11.39486681]
[1771613102153,11.74236131,85.162,85.131,4.09819238]
[1771613102376,29.35077241,85.177,85.133,4.09819238]
[1771613102377,11.74105195,85.172,85.133,4.09819238]
[1771613102532,23.13476922,85.18,85.141,4.09819238]
[1771613102935,11.39486681,85.17,85.141,4.09819238]
[1771613103149,4.3615274,85.159,85.132,11.74646431]
[1771613103359,4.3615274,85.168,85.133,4.09819238]
[1771613103854,23.13476922,85.18,85.141,4.09819238]
[1771613104035,4.3615274,85.179,85.141,4.09819238]
[1771613104634,4.3615274,85.169,85.132,4.09819238]
[1771613104860,4.3615274,85.149,85.11,11.39486681]
[1771613105037,11.39486681,85.15,85.103,4.09819238]
[1771613105236,11.39486681,85.15,85.093,41.13146791]
[1771613105237,4.3615274,85.158,85.12,11.39486681]
[1771613105437,11.39486681,85.15,85.121,4.09819238]
[1771613105754,4.3615274,85.149,85.11,15.49305919]
[1771613106064,4.3615274,85.129,85.099,4.09819238]
[1771613106752,4.3615274,85.129,85.1,11.75088131]
[1771613106952,11.39486681,85.14,85.101,4.49214027]
[1771613107154,11.74375163,85.152,85.111,4.49214027]
[1771613107546,4.31868768,85.151,85.111,4.49214027]
[1771613107741,11.39486681,85.15,85.111,4.49214027]
[1771613107951,15.71355449,85.15,85.111,4.49214027]
[1771613108658,4.31868768,85.15,85.111,4.49214027]
[1771613109961,11.74411913,85.149,85.113,4.05857098]
[1771613110260,4.31868768,85.15,85.121,4.05857098]
[1771613110441,11.74356776,85.153,85.121,4.05857098]
[1771613110645,11.74356776,85.153,85.108,11.74971011]
[1771613110646,4.31868768,85.139,85.108,11.74971011]
[1771613111549,11.36804557,85.13,85.104,4.05857098]
[1771613111855,11.74609091,85.135,85.1,11.36804557]
[1771613112056,16.06477859,85.135,85.101,4.05857098]
[1771613112460,11.36804557,85.14,85.101,4.05857098]
[1771613112651,11.74549853,85.139,85.101,4.05857098]
[1771613112858,16.06418621,85.139,85.101,4.05857098]
[1771613113960,4.31868768,85.119,85.092,4.05857098]
[1771613114165,11.36804557,85.12,85.094,4.05857098]
[1771613114352,4.31868768,85.137,85.094,4.05857098]
[1771613115062,11.74549853,85.139,85.094,4.05857098]
[1771613115063,4.31868768,85.129,85.094,4.05857098]
[1771613115654,11.74549853,85.139,85.093,11.75184797]
[1771613115655,4.31868768,85.119,85.093,11.75184797]
[1771613116054,4.31868768,85.128,85.091,4.05857098]
[1771613116274,4.31868768,85.138,85.101,4.05857098]
[1771613116565,4.31868768,85.136,85.101,4.05857098]
[1771613117646,11.36804557,85.13,85.101,4.05857098]
[1771613117951,4.31868768,85.136,85.101,4.05857098]
[1771613118770,4.31868768,85.134,85.101,15.80924062]
[1771613119272,4.31868768,85.134,85.102,4.05857098]
[1771613119471,11.74557936,85.139,85.102,4.05857098]
[1771613119662,4.31868768,85.144,85.102,4.45857098]
[1771613119864,11.36804557,85.14,85.102,4.45857098]
[1771613120556,4.31868768,85.139,85.102,4.45857098]
[1771613120761,4.31868768,85.127,85.094,4.05857098]
[1771613121171,11.74701625,85.128,85.094,4.05857098]
[1771613121358,11.74598196,85.136,85.101,4.05857098]
[1771613121861,4.31868768,85.135,85.101,4.05857098]
[1771613122572,4.31868768,85.129,85.101,4.05857098]
[1771613122760,16.06570393,85.128,85.101,4.05857098]
[1771613123078,4.31868768,85.127,85.101,4.05857098]
[1771613123388,4.31868768,85.127,85.096,11.75139169]
[1771613123975,4.31868768,85.127,85.097,4.05857098]
[1771613124171,4.31868768,85.119,85.087,4.05857098]
[1771613124376,4.31868768,85.127,85.089,4.05857098]
[1771613125266,4.31868768,85.134,85.101,4.05857098]
[1771613125467,11.36804557,85.13,85.101,4.05857098]
[1771613125662,4.31868768,85.129,85.091,4.05857098]
[1771613126374,11.74605039,85.135,85.091,4.05857098]
[1771613126678,11.74605039,85.135,85.101,4.05857098]
[1771613127061,4.31868768,85.134,85.1,11.36804557]
[1771613127260,4.31868768,85.129,85.101,4.05857098]
[1771613127758,11.74605039,85.135,85.101,4.05857098]
[1771613128674,4.31868768,85.129,85.101,4.05857098]
[1771613129179,11.74701625,85.128,85.102,11.75060515]
[1771613129385,4.31868768,85.127,85.102,4.05857098]
[1771613129677,4.31868768,85.127,85.075,58.77111316]
[1771613129678,4.31868768,85.119,85.082,4.05857098]
[1771613130266,4.31868768,85.099,85.071,11.75480464]
[1771613130578,4.31868768,85.099,85.072,4.05857098]
[1771613131177,11.75115748,85.098,85.072,4.05857098]
[1771613131882,16.06984516,85.098,85.072,4.05857098]
[1771613132276,4.31868768,85.098,85.072,15.81325487]
[1771613132777,4.31868768,85.097,85.065,4.05857098]
[1771613133168,11.75068345,85.102,85.067,4.05857098]
[1771613133366,11.36804557,85.12,85.071,4.05857098]
[1771613133677,4.31868768,85.119,85.071,4.05857098]
[1771613133990,4.31868768,85.109,85.071,4.05857098]
[1771613136584,11.74342955,85.154,85.111,4.05857098]
[1771613136797,11.36804557,85.16,85.089,0.14216157]
[1771613136798,11.36804557,85.17,85.131,4.05857098]
[1771613136981,4.31868768,85.169,85.131,4.05857098]
[1771613137282,4.42523665,85.147,85.121,11.74798228]
[1771613137487,4.42523665,85.147,85.109,29.3739409]
[1771613137488,4.42523665,85.147,85.114,4.0944026]
[1771613137670,11.36804557,85.13,85.101,4.0944026]
[1771613137859,11.36804557,85.13,85.063,5.36086188]
[1771613137860,4.42523665,85.129,85.092,4.0944026]
[1771613138871,4.42523665,85.139,85.092,4.0944026]
[1771613139070,4.42523665,85.147,85.101,4.0944026]
[1771613139375,11.74357549,85.153,85.113,4.0944026]
[1771613139585,11.36804557,85.15,85.113,4.0944026]
[1771613139879,15.79328222,85.15,85.113,4.0944026]
[1771613140064,4.42523665,85.149,85.113,4.0944026]
[1771613140587,4.42523665,85.179,85.141,4.0944026]
[1771613140773,4.42523665,85.189,85.151,4.0944026]
[1771613140972,11.73874254,85.188,85.151,4.0944026]
[1771613141185,4.42523665,85.187,85.151,4.0944026]
[1771613141386,4.42523665,85.187,85.153,4.0944026]
[1771613141978,11.73862209,85.189,85.153,4.0944026]
[1771613142481,4.42523665,85.179,85.101,4.0944026]
[1771613142791,4.42523665,85.159,85.121,4.0944026]
[1771613143187,11.36804557,85.16,85.121,4.0944026]
[1771613143391,11.74274005,85.159,85.123,4.0944026]
[1771613144099,11.36804557,85.15,85.123,4.0944026]
[1771613144277,4.42523665,85.149,85.113,4.0944026]
[1771613144674,4.42523665,85.139,85.103,4.0944026]
[1771613144873,0.14216157,85.168,85.103,4.0944026]
[1771613144874,11.73998285,85.179,85.13,11.36804557]
[1771613145097,4.42523665,85.178,85.141,4.0944026]
[1771613145496,11.36804557,85.18,85.143,4.0944026]
[1771613145700,4.42523665,85.178,85.143,4.0944026]
[1771613145887,11.36804557,85.21,85.17,11.36804557]
[1771613146195,11.36804557,85.2,85.171,4.0944026]
[1771613146792,4.42523665,85.209,85.171,4.0944026]
[1771613147180,4.42523665,85.199,85.16,4.0944026]
[1771613147382,11.36804557,85.18,85.151,11.74384329]
[1771613147702,4.42523665,85.169,85.139,4.0944026]
[1771613147904,4.42523665,85.169,85.12,11.36804557]
[1771613147905,4.42523665,85.169,85.122,4.0944026]
[1771613148081,4.42523665,85.179,85.131,4.0944026]
[1771613148283,11.36804557,85.17,85.131,4.0944026]
[1771613149084,4.42523665,85.176,85.131,4.0944026]
[1771613149484,11.36804557,85.17,85.133,4.0944026]
[1771613149701,11.36804557,85.16,85.133,4.0944026]
[1771613149893,4.42523665,85.169,85.133,4.0944026]
[1771613150608,4.42523665,85.139,85.101,4.0944026]
[1771613151609,11.36804557,85.15,85.111,4.0944026]
[1771613151791,11.74274005,85.159,85.121,4.0944026]
[1771613152103,15.79328222,85.15,85.111,4.0944026]
[1771613152303,11.36804557,85.13,85.102,11.75060515]
[1771613152505,4.42523665,85.149,85.103,4.0944026]
[1771613152685,4.42523665,85.149,85.111,4.0944026]
[1771613153506,41.09959017,85.159,85.12,11.36804557]
[1771613153507,4.42523665,85.159,85.12,11.36804557]
[1771613153703,11.74256425,85.161,85.123,4.0944026]
[1771613153903,11.74256425,85.161,85.122,41.11745494]
[1771613153904,11.74171247,85.167,85.131,4.0944026]
[1771613154410,11.73998285,85.179,85.141,4.0944026]
[1771613154989,11.36804557,85.18,85.141,4.0944026]
[1771613155297,4.42523665,85.206,85.17,11.36804557]
[1771613155489,4.42523665,85.206,85.17,4.0944026]
[1771613155684,11.73640044,85.205,85.172,4.0944026]
[1771613155896,11.73587628,85.209,85.172,4.0944026]
[1771613156188,3.69383402,85.239,85.181,4.0944026]
[1771613156389,11.73640044,85.279,85.231,4.0944026]
[1771613156602,6.12951494,85.269,85.25,11.36804557]
[1771613156802,4.42523665,85.268,85.249,0.21633461]
[1771613156999,4.38098428,85.259,85.219,4.0944026]
[1771613157200,11.36804557,85.24,85.202,4.0944026]
[1771613157595,0.14216157,85.275,85.172,3.69383402]
[1771613157596,11.36804557,85.26,85.221,4.0944026]
[1771613157788,11.36804557,85.25,85.221,4.0944026]
[1771613157989,4.38098428,85.26,85.221,4.0944026]
[1771613158187,11.36804557,85.25,85.221,4.0944026]
[1771613158410,11.36804557,85.25,85.211,4.0944026]
[1771613159013,15.74902985,85.26,85.221,4.0944026]
[1771613159215,41.04320089,85.276,85.209,4.0944026]
[1771613159216,11.36804557,85.25,85.209,4.0944026]
[1771613159527,11.36804557,85.25,85.211,4.0944026]
[1771613159812,11.36804557,85.22,85.171,4.0944026]
[1771613160009,0.14216157,85.245,85.191,4.0944026]
[1771613160010,11.36804557,85.23,85.191,4.0944026]
[1771613160316,11.36804557,85.24,85.211,4.0944026]
[1771613160514,46.90793953,85.274,85.211,4.0944026]
[1771613160515,23.09827004,85.25,85.211,4.0944026]
[1771613160815,11.72955383,85.255,85.221,4.0944026]
[1771613160989,11.72955383,85.255,85.176,5.36086188]
[1771613160990,11.36804557,85.27,85.24,4.0944026]
[1771613161194,11.36804557,85.25,85.21,11.36804557]
[1771613161415,4.42523665,85.259,85.22,11.36804557]
[1771613161595,11.36804557,85.25,85.21,11.36804557]
[1771613161796,11.73034287,85.249,85.211,11.73557404]
[1771613162014,11.73034287,85.249,85.22,11.36804557]
[1771613162313,11.73034287,85.249,85.211,11.73557404]
[1771613162314,11.72540394,85.285,85.24,11.36804557]
[1771613162700,4.42523665,85.292,85.25,11.36804557]
[1771613162902,46.86335173,85.355,85.233,0.14216157]
[1771613162903,35.33,85.465,85.281,0.14216157]
[1771613163096,524.1,85.679,85.281,0.14216157]
[1771613163097,11.36804557,85.415,85.323,0.14216157]
[1771613163294,11.36804557,85.415,85.304,6.125934]
[1771613163295,6.12019808,85.468,85.391,0.14216157]
[1771613163495,11.36804557,85.44,85.39,11.36804557]
[1771613163696,11.36804557,85.46,85.41,11.36804557]
[1771613163910,4.5,85.478,85.43,11.36804557]
[1771613164112,16.19891668,85.478,85.44,11.36804557]
[1771613164415,16.19891668,85.478,85.402,0.14216157]
[1771613164416,4.5,85.478,85.45,11.36804557]
[1771613164615,11.36804557,85.47,85.402,0.14216157]
[1771613164825,4.5,85.439,85.348,46.8664854]
[1771613165012,4.5,85.439,85.38,11.36804557]
[1771613165197,4.5,85.471,85.401,0.28432314]
[1771613165397,11.95861267,85.479,85.44,11.36804557]
[1771613165603,11.36804557,85.47,85.43,11.36804557]
[1771613165818,11.95861267,85.479,85.41,11.36804557]
[1771613165819,11.36804557,85.45,85.41,11.36804557]
[1771613165995,4.5,85.449,85.41,11.36804557]
[1771613166307,11.36804557,85.42,85.378,11.71261917]
[1771613166616,4.5,85.429,85.39,11.36804557]
[1771613166921,11.36804557,85.41,85.378,11.71261917]
[1771613167418,11.70028548,85.468,85.391,4.27110466]
[1771613167614,11.70028548,85.468,85.38,11.36804557]
[1771613167615,11.36804557,85.46,85.42,11.36804557]
[1771613167819,11.36804557,85.45,85.405,4.27110466]
[1771613168021,11.36804557,85.45,85.41,11.36804557]
[1771613168222,11.36804557,85.42,85.379,4.27110466]
[1771613168524,11.36804557,85.42,85.38,11.36804557]
[1771613168706,11.36804557,85.43,85.39,11.36804557]
[1771613169022,11.36804557,85.43,85.391,4.27110466]
[1771613169224,11.36804557,85.45,85.41,11.36804557]
[1771613169609,40.94620838,85.478,85.39,11.36804557]
[1771613169610,4.11941616,85.429,85.39,11.36804557]
[1771613169925,4.11941616,85.429,85.363,0.14216157]
[1771613169926,11.29041519,85.44,85.401,4.27110466]
[1771613170314,11.29041519,85.46,85.421,4.27110466]
[1771613170622,11.29041519,85.46,85.419,4.27110466]
[1771613170810,11.69891668,85.478,85.41,11.29041519]
[1771613170811,11.29041519,85.45,85.41,11.29041519]
[1771613171118,4.11941616,85.449,85.4,11.29041519]
[1771613171318,15.40983135,85.46,85.42,11.29041519]
[1771613171706,4.11941616,85.459,85.41,11.29041519]
[1771613172104,15.40983135,85.44,85.4,11.29041519]
[1771613172513,40.95579114,85.458,85.4,11.29041519]
[1771613172717,11.29041519,85.44,85.401,4.27110466]
[1771613172951,40.95579114,85.458,85.384,40.99128642]
[1771613172952,11.29041519,85.45,85.411,4.27110466]
[1771613174122,11.70425683,85.439,85.401,4.27110466]
[1771613174313,11.70425683,85.439,85.394,4.27110466]
[1771613174514,11.29041519,85.43,85.394,4.27110466]
[1771613174713,4.11941616,85.437,85.394,4.27110466]
[1771613174927,11.29041519,85.43,85.394,4.27110466]
[1771613175128,11.29041519,85.42,85.382,4.27110466]
[1771613175442,11.29041519,85.42,85.363,0.14216157]
[1771613175443,11.29041519,85.4,85.361,4.27110466]
[1771613175627,0.14216157,85.435,85.381,4.27110466]
[1771613175628,11.29041519,85.42,85.381,4.27110466]
[1771613175927,11.29041519,85.4,85.369,4.27110466]
[1771613176224,11.71111033,85.389,85.355,4.27110466]
[1771613176428,11.29041519,85.37,85.341,4.27110466]
[1771613176612,40.98888615,85.389,85.32,11.93765653]
[1771613176613,11.29041519,85.36,85.32,11.93765653]
[1771613176812,11.29041519,85.36,85.322,4.27110466]
[1771613177011,4.11941616,85.359,85.322,4.27110466]
[1771613177208,4.11941616,85.339,85.292,4.27110466]
[1771613177412,11.29041519,85.33,85.292,4.27110466]
[1771613177713,4.11941616,85.388,85.293,3.96772766]
[1771613177912,15.83052649,85.389,85.341,3.96772766]
[1771613178117,4.11941616,85.386,85.341,3.96772766]
[1771613178329,11.29041519,85.37,85.331,0.14216157]
[1771613178531,4.11941616,85.379,85.34,11.29041519]
[1771613178826,4.11941616,85.395,85.36,11.29041519]
[1771613179128,46.81192969,85.449,85.334,11.71864741]
[1771613179129,4.11941616,85.42,85.381,3.96772766]
[1771613179429,4.11941616,85.42,85.38,11.29041519]
[1771613179430,11.70356803,85.445,85.41,11.29041519]
[1771613179632,4.11941616,85.439,85.363,3.96772766]
[1771613179842,11.70356803,85.445,85.363,3.96772766]
[1771613179843,4.11941616,85.429,85.381,0.14216157]
[1771613180009,15.40983135,85.42,85.378,3.96772766]
[1771613180215,15.82655048,85.418,85.379,11.71248199]
[1771613180514,15.82655048,85.418,85.38,11.29041519]
[1771613181113,11.29041519,85.43,85.39,11.29041519]
[1771613181433,4.11941616,85.419,85.381,3.96772766]
[1771613182519,4.11941616,85.417,85.375,11.71290229]
[1771613182722,15.40983135,85.41,85.375,11.71290229]
[1771613182915,4.11941616,85.409,85.375,11.71290229]
[1771613183117,4.11941616,85.399,85.356,11.71551572]
[1771613183335,40.97497013,85.418,85.371,3.96772766]
[1771613183336,11.70713432,85.418,85.371,3.96772766]
[1771613183537,11.70713432,85.418,85.38,11.29041519]
[1771613184038,4.11941616,85.389,85.356,11.71551572]
[1771613184250,4.11941616,85.389,85.35,23.00674225]
[1771613184947,11.71024402,85.396,85.36,11.29041519]
[1771613185235,11.70973898,85.399,85.36,11.29041519]
[1771613185449,11.70973898,85.399,85.36,15.25814285]
[1771613185643,4.11941616,85.389,85.35,23.00674225]
[1771613185845,4.11941616,85.389,85.346,3.96772766]
[1771613186026,4.11941616,85.379,85.341,11.71769723]
[1771613186420,4.11941616,85.379,85.341,15.68542489]
[1771613186833,11.71261917,85.378,85.341,15.68542489]
[1771613187733,4.11941616,85.369,85.33,11.29041519]
[1771613187920,4.11941616,85.382,85.35,11.29041519]
[1771613188118,11.71220763,85.381,85.35,11.29041519]
[1771613188438,11.71148439,85.387,85.35,11.29041519]
[1771613188828,11.71248199,85.379,85.341,3.96772766]
[1771613189023,11.29041519,85.39,85.351,3.96772766]
[1771613189224,11.71111033,85.389,85.351,3.96772766]
[1771613189836,4.11941616,85.379,85.342,11.71755993]
[1771613191251,4.11941616,85.369,85.336,11.7183362]
[1771613191546,4.11941616,85.359,85.32,11.29041519]
[1771613192231,4.11941616,85.359,85.321,3.96772766]
[1771613192430,15.40983135,85.37,85.33,15.25814285]
[1771613193116,4.11941616,85.37,85.33,15.25814285]
[1771613193315,4.11941616,85.37,85.331,41.01674654]
[1771613193623,4.11941616,85.379,85.34,11.29041519]
[1771613193936,4.11941616,85.379,85.331,41.01674654]
[1771613193937,4.11941616,85.349,85.311,4.27110466]
[1771613194643,11.29041519,85.34,85.3,4.27110466]
[1771613195134,4.11941616,85.349,85.301,4.27110466]
[1771613195333,4.11941616,85.347,85.303,4.27110466]
[1771613196322,0.14216157,85.375,85.302,41.03069094]
[1771613196323,4.11941616,85.358,85.321,4.27110466]
[1771613196524,11.29041519,85.36,85.321,4.27110466]
[1771613196925,4.11941616,85.359,85.321,4.27110466]
[1771613197538,11.29041519,85.35,85.322,11.7203066]
[1771613197844,15.59480026,85.35,85.322,11.7203066]
[1771613198354,3.49,86.631,85.323,4.3745747]
[1771613198355,4.30438507,85.361,85.323,4.3745747]
[1771613199747,4.30438507,85.361,85.325,4.3745747]
[1771613200453,4.30438507,85.385,85.341,4.3745747]
[1771613200652,11.29041519,85.4,85.351,4.3745747]
[1771613200860,4.30438507,85.399,85.351,4.3745747]
[1771613201356,11.29041519,85.39,85.351,4.3745747]
[1771613201658,11.71248199,85.379,85.341,4.3745747]
[1771613202046,4.30438507,85.378,85.341,4.3745747]
[1771613202756,4.30438507,85.378,85.339,41.01290148]
[1771613202757,4.30438507,85.369,85.339,11.71797185]
[1771613202984,4.30438507,85.359,85.322,4.3745747]
[1771613203255,11.29041519,85.37,85.322,4.3745747]
[1771613203457,4.30438507,85.388,85.341,4.3745747]
[1771613203759,11.29041519,85.38,85.343,4.3745747]
[1771613203952,4.30438507,85.379,85.343,4.3745747]
[1771613204152,4.30438507,85.369,85.342,11.71755993]
[1771613204458,4.30438507,85.379,85.343,4.3745747]
[1771613205862,4.30438507,85.378,85.344,11.71728533]
[1771613206041,4.30438507,85.378,85.344,41.01049867]
[1771613206632,4.30438507,85.378,85.344,45.38507337]
[1771613207060,11.71181168,85.384,85.345,4.3745747]
[1771613207251,16.01569467,85.388,85.345,4.3745747]
[1771613207844,0.14216157,85.415,85.323,0.14216157]
[1771613207845,4.30438507,85.399,85.361,4.3745747]
[1771613208042,4.30438507,85.409,85.371,4.3745747]
[1771613209253,15.59480026,85.42,85.381,4.3745747]
[1771613209470,15.59480026,85.42,85.363,0.14216157]
[1771613209471,4.30438507,85.437,85.391,4.3745747]
[1771613209841,15.59480026,85.43,85.392,16.08527359]
[1771613210066,15.59480026,85.43,85.392,45.36202082]
[1771613210263,11.29041519,85.43,85.392,45.36202082]
[1771613210455,4.30438507,85.429,85.392,45.36202082]
[1771613210649,4.30438507,85.419,85.392,11.71069889]
[1771613210960,4.30438507,85.409,85.371,40.99746765]
[1771613211466,4.30438507,85.409,85.371,45.37204235]
[1771613211761,4.30438507,85.409,85.372,4.3745747]
[1771613211965,4.30438507,85.407,85.373,40.99656799]
[1771613212192,0.14216157,85.446,85.373,40.99656799]
[1771613212193,16.0712998,85.496,85.377,4.65889784]
[1771613212347,16.0712998,85.496,85.376,3.69383402]
[1771613212348,11.29041519,85.56,85.509,0.14216157]
[1771613212671,11.29041519,85.58,85.53,11.29041519]
[1771613213165,11.29041519,85.55,85.508,6.11237639]
[1771613213666,11.29041519,85.54,85.508,6.11237639]
[1771613213851,11.29041519,85.53,85.508,6.11237639]
[1771613214056,11.29041519,85.54,85.509,11.69467541]
[1771613214355,4.5,85.539,85.509,40.93136394]
[1771613214559,4.5,85.539,85.51,11.29041519]
[1771613214753,4.5,85.539,85.509,11.69467541]
[1771613215057,4.5,85.539,85.51,11.29041519]
[1771613215370,4.5,85.539,85.509,11.69467541]
[1771613215565,11.29041519,85.54,85.509,11.69467541]
[1771613215770,40.8935832,85.588,85.53,11.29041519]
[1771613216065,11.29041519,85.57,85.531,11.69166734]
[1771613216266,3.69383402,85.599,85.531,40.92083571]
[1771613216267,11.29041519,85.56,85.531,40.92083571]
[1771613216648,11.29041519,85.54,85.509,4.3745747]
[1771613216855,11.29041519,85.55,85.51,11.29041519]
[1771613217560,11.29041519,85.55,85.511,11.69440188]
[1771613217766,11.29041519,85.54,85.511,11.69440188]
[1771613218965,11.29041519,85.56,85.521,4.3745747]
[1771613219162,15.59480026,85.56,85.521,4.3745747]
[1771613219663,4.30438507,85.559,85.521,4.3745747]
[1771613220263,11.29041519,85.54,85.512,11.69426513]
[1771613220769,4.30438507,85.582,85.531,4.3745747]
[1771613220966,11.29041519,85.58,85.54,11.29041519]
[1771613221145,11.29041519,85.57,85.531,4.3745747]
[1771613221352,4.30438507,85.579,85.54,11.29041519]
[1771613221646,11.29041519,85.57,85.531,4.3745747]
[1771613222257,11.29041519,85.57,85.532,11.69153065]
[1771613222470,11.68647524,85.569,85.532,11.69153065]
[1771613222769,4.30438507,85.568,85.532,11.69153065]
[1771613222956,4.30438507,85.565,85.532,11.69153065]
[1771613223155,4.30438507,85.576,85.54,11.29041519]
[1771613223555,11.29041519,85.57,85.533,4.3745747]
[1771613223772,4.30438507,85.569,85.533,4.3745747]
[1771613223972,11.29041519,85.56,85.532,11.69153065]
[1771613224265,4.30438507,85.537,85.511,11.69440188]
[1771613224470,11.29041519,85.54,85.511,11.69440188]
[1771613224661,11.29041519,85.53,85.511,11.69440188]
[1771613224974,4.30438507,85.539,85.511,11.69440188]
[1771613225369,4.30438507,85.539,85.51,11.4569087]
[1771613225568,4.30438507,85.539,85.506,11.69497732]
[1771613226249,4.29993869,85.538,85.501,11.69576964]
[1771613226453,4.29993869,85.529,85.49,11.29041519]
[1771613226687,11.29041519,85.52,85.486,4.23654084]
[1771613228059,11.69263742,85.524,85.491,11.69713771]
[1771613228269,11.29041519,85.52,85.491,11.69713771]
[1771613228868,11.29041519,85.5,85.49,10.66492917]
[1771613229073,11.29041519,85.5,85.475,11.69927456]
[1771613229454,11.29041519,85.52,85.481,4.34842408]
[1771613229675,11.6921993,85.528,85.491,4.34842408]
[1771613230067,11.29041519,85.53,85.493,4.34842408]
[1771613230278,11.69194074,85.529,85.493,4.34842408]
[1771613231471,11.69194074,85.529,85.494,11.69672725]
[1771613231774,11.29041519,85.52,85.495,4.34842408]
[1771613231973,11.2691194,85.52,85.495,4.34842408]
[1771613232177,11.2691194,85.52,85.494,11.69672725]
[1771613232674,11.2691194,85.52,85.484,4.34842408]
[1771613232675,11.2691194,85.51,85.484,4.34842408]
[1771613232860,11.2691194,85.51,85.48,11.65485018]
[1771613233060,11.2691194,85.51,85.481,11.6985061]
[1771613233255,11.2691194,85.5,85.48,11.50306102]
[1771613233460,11.2691194,85.5,85.464,4.34842408]
[1771613233461,11.2691194,85.5,85.464,16.04925717]
[1771613233668,11.2691194,85.5,85.465,4.34842408]
[1771613233858,11.69604322,85.499,85.465,4.34842408]
[1771613234568,11.2691194,85.5,85.47,11.77326764]
[1771613234970,11.2691194,85.51,85.471,4.34842408]
[1771613235176,11.2691194,85.49,85.47,11.77326764]
[1771613235377,11.2691194,85.49,85.453,4.34842408]
[1771613235755,11.69631682,85.497,85.454,11.70220235]
[1771613235966,11.2691194,85.49,85.455,4.34842408]
[1771613236772,11.69631682,85.497,85.461,4.34842408]
[1771613237170,11.2691194,85.49,85.461,4.34842408]
[1771613237385,40.93710889,85.497,85.461,4.34842408]
[1771613237671,11.2691194,85.49,85.461,4.34842408]
[1771613238380,11.69741136,85.489,85.461,16.04966584]
[1771613238558,11.696839,85.494,85.462,4.34842408]
[1771613238758,11.2691194,85.49,85.462,16.049531]